bitfinex/quotes_ETHUSD_20241216
["timestamp","ask_amount","ask_price","bid_price","bid_amount"]
[1734357396501,2.56926,3892.2,3891.3,0.7758]
[1734357397210,2.56926,3892.2,3891.2,0.51397]
[1734357397211,2.56926,3892.2,3891.5,0.8106]
[1734357398935,2.56933,3892.1,3891.5,0.8106]
[1734357399091,2.56938,3892.0,3891.5,0.8106]
[1734357399426,2.56891,3892.7,3891.5,0.8106]
[1734357399427,2.56944,3891.9,3891.5,0.8106]
[1734357400008,2.56924,3892.2,3891.5,0.8106]
[1734357400543,2.56952,3891.8,3891.5,0.8106]
[1734357400694,2.56963,3891.6,3891.5,0.8106]
[1734357403249,2.56963,3891.6,3890.8,0.8293]
[1734357403747,2.56969,3891.6,3890.8,0.8293]
[1734357403903,2.5697,3891.5,3890.8,0.8293]
[1734357404255,2.5697,3891.5,3890.9,0.33088949]
[1734357404537,2.56971,3891.5,3890.9,0.33088949]
[1734357404740,2.56971,3891.5,3890.8,0.8027]
[1734357405441,2.56963,3891.7,3890.8,0.8027]
[1734357406002,2.56937,3892.0,3890.8,0.8027]
[1734357406300,2.56967,3891.6,3890.8,0.8027]
[1734357406496,2.5693,3892.1,3890.8,0.8027]
[1734357406723,0.7847,3892.2,3890.9,1.47516927]
[1734357406724,2.56938,3892.0,3890.9,1.47516927]
[1734357406938,2.56946,3891.9,3891.0,0.8056]
[1734357407147,2.56897,3892.6,3891.1,0.02569713]
[1734357407463,2.56916,3892.4,3891.3,0.8056]
[1734357407667,2.56916,3892.4,3891.4,0.8056]
[1734357408122,3.34243,3893.2,3891.6,0.8056]
[1734357408323,2.5686,3893.2,3892.0,0.51387]
[1734357408524,2.5686,3893.2,3892.1,0.8056]
[1734357408926,2.47042986,3893.4,3892.1,0.8056]
[1734357409138,2.56891,3892.7,3892.1,0.8056]
[1734357409340,2.56905,3892.5,3892.1,0.8056]
[1734357410159,2.56889,3892.8,3892.1,0.8056]
[1734357410562,3.62715599,3893.3,3892.1,0.8056]
[1734357410882,2.56894,3892.7,3892.1,0.8056]
[1734357411229,2.56897,3892.6,3892.1,0.8056]
[1734357412646,2.56886,3892.8,3892.1,0.8056]
[1734357413573,2.56867,3893.1,3892.2,0.02569029]
[1734357413782,2.47042986,3893.3,3892.4,0.8214]
[1734357413783,2.56853,3893.3,3892.4,0.8214]
[1734357414688,2.56837,3893.6,3892.5,0.02568781]
[1734357414841,2.56837,3893.6,3892.6,0.7583]
[1734357415043,2.56816,3893.9,3892.7,0.02568634]
[1734357415290,0.7764,3894.1,3892.8,0.814]
[1734357415586,2.56827,3893.7,3892.8,0.814]
[1734357416278,2.47042986,3894.2,3892.9,0.82368468]
[1734357416440,2.56808,3894.0,3892.9,0.82368468]
[1734357416873,2.56798,3894.1,3892.9,0.82368468]
[1734357417067,2.47042986,3894.2,3892.9,0.798]
[1734357417283,3.05555485,3894.2,3893.0,0.8261]
[1734357417487,2.56819,3893.8,3893.0,0.8261]
[1734357417885,2.56806,3894.0,3893.0,0.8261]
[1734357418186,2.56812,3893.9,3893.0,0.8261]
[1734357418551,3.05555485,3894.2,3893.0,0.8261]
[1734357418744,2.56829,3893.7,3893.0,0.8261]
[1734357419441,3.21162649,3894.1,3893.0,0.8261]
[1734357419442,0.64364649,3894.1,3893.0,0.8261]
[1734357419660,2.47042986,3894.4,3893.1,0.7876]
[1734357419946,2.47042986,3894.8,3893.1,0.7876]
[1734357420258,2.56781,3894.4,3893.2,0.7825]
[1734357420460,2.56781,3894.4,3893.4,0.7825]
[1734357420671,0.32631299,3894.7,3893.4,0.7825]
[1734357420886,2.56776,3894.5,3893.4,0.7825]
[1734357421086,2.56782,3894.4,3893.4,0.7825]
[1734357421285,2.8572333,3894.4,3893.4,0.7825]
[1734357421845,0.7927,3894.2,3893.4,0.7825]
[1734357422050,2.56812,3893.9,3893.4,0.7825]
[1734357423844,0.7927,3894.2,3893.4,0.7825]
[1734357424049,0.7927,3894.2,3893.1,0.7841]
[1734357424050,2.56847,3893.4,3893.1,0.7841]
[1734357424293,0.256847,3893.4,3893.1,0.7841]
[1734357424461,0.7863,3893.6,3892.3,1.07172024]
[1734357424462,2.47042986,3893.5,3892.3,0.7841]
[1734357424783,2.56857,3893.3,3892.3,0.7841]
[1734357425365,2.56857,3893.3,3892.4,0.8019]
[1734357428647,2.47042986,3893.5,3892.4,0.8019]
[1734357428850,3.32682,3893.9,3892.4,0.8019]
[1734357428851,2.47042986,3893.1,3892.4,0.8019]
[1734357429087,2.56887,3892.8,3892.4,0.8019]
[1734357430293,2.56895,3892.7,3892.4,0.8019]
[1734357431362,2.47042986,3893.1,3892.4,0.8019]
[1734357431571,2.81575299,3893.0,3892.4,0.8019]
[1734357431787,2.56892,3892.7,3892.4,0.8019]
[1734357431999,2.56899,3892.6,3892.4,0.8019]
[1734357432785,2.56924,3892.2,3892.0,0.8169]
[1734357433147,2.56912,3892.4,3892.0,0.8169]
[1734357433347,3.07307499,3892.4,3892.0,0.8169]
[1734357434363,2.56912,3892.4,3892.0,0.8169]
[1734357436463,2.47042986,3892.7,3892.0,0.8169]
[1734357436665,2.5692,3892.3,3892.0,0.8169]
[1734357437303,2.47042986,3892.7,3892.0,0.8169]
[1734357437304,2.56906,3892.5,3892.0,0.8169]
[1734357437919,2.56914,3892.4,3892.0,0.8169]
[1734357438072,2.56918,3892.3,3892.0,0.8169]
[1734357439398,2.56918,3892.3,3891.3,0.8222]
[1734357439599,2.56918,3892.3,3891.3,1.1101507]
[1734357439922,2.56918,3892.3,3891.4,0.8041]
[1734357440214,1.14000341,3892.2,3891.4,0.8041]
[1734357441311,1.14000341,3891.9,3891.4,0.8041]
[1734357442373,1.14000341,3891.9,3891.4,0.935906]
[1734357442803,1.14000341,3892.1,3891.4,0.935906]
[1734357443111,1.14000341,3892.3,3891.5,0.803]
[1734357443325,2.56867,3893.1,3891.7,0.803]
[1734357443609,1.14000341,3893.0,3891.9,0.803]
[1734357444182,0.765,3893.5,3891.9,0.803]
[1734357444183,3.70891341,3892.7,3891.9,0.803]
[1734357444901,1.14000341,3892.4,3891.9,0.803]
[1734357450347,1.14000341,3892.7,3891.9,0.803]
[1734357450696,1.14000341,3892.7,3892.0,0.131689]
[1734357450938,3.70891341,3892.7,3892.0,0.131689]
[1734357451092,3.70891341,3892.7,3891.9,0.803]
[1734357451294,1.14000341,3892.4,3891.9,0.803]
[1734357451494,3.70911341,3892.4,3891.9,0.803]
[1734357452406,3.70931341,3892.1,3891.4,0.8022]
[1734357453038,1.14000341,3892.1,3891.4,0.8022]
[1734357453527,2.56924,3892.2,3891.4,0.8022]
[1734357456453,1.14000341,3892.4,3891.4,0.8022]
[1734357456662,3.70913341,3892.4,3891.5,0.7943]
[1734357456860,3.70913341,3892.4,3891.5,1.05927989]
[1734357457214,3.70913341,3892.4,3891.6,0.8032]
[1734357457421,3.70899341,3892.6,3891.6,0.8032]
[1734357457728,3.70899341,3892.6,3891.7,0.8032]
[1734357458161,3.70899341,3892.6,3891.7,1.8769002]
[1734357458465,3.70899341,3892.6,3891.9,0.8122]
[1734357460476,1.14000341,3892.6,3891.9,0.8122]
[1734357461672,0.83,3893.3,3891.9,0.8122]
[1734357461846,1.14000341,3893.3,3892.1,0.8122]
[1734357462034,1.14000341,3893.3,3892.4,0.8122]
[1734357462234,1.14000341,3893.3,3892.5,0.8122]
[1734357462436,1.14000341,3893.3,3892.5,0.5138]
[1734357462636,1.14000341,3893.3,3892.6,0.8122]
[1734357466090,2.56846,3893.4,3892.6,0.8122]
[1734357466377,0.83,3893.6,3892.6,0.8122]
[1734357466378,1.14000341,3893.3,3892.6,0.8122]
[1734357466733,1.14000341,3893.6,3892.8,1.28496]
[1734357466938,1.14000341,3893.6,3892.9,0.7712]
[1734357467582,1.14000341,3893.9,3893.0,0.8268]
[1734357467786,1.14000341,3893.9,3893.1,0.8268]
[1734357468673,3.70812341,3893.9,3893.1,0.8268]
[1734357470742,3.70812341,3893.9,3893.2,0.8277]
[1734357471348,1.14000341,3893.9,3893.2,0.8277]
[1734357472669,1.14000341,3894.1,3893.2,0.8277]
[1734357472942,1.14000341,3893.9,3893.2,0.8277]
[1734357476991,1.14000341,3893.7,3893.2,0.8277]
[1734357478837,1.14000341,3893.9,3893.2,0.8277]
[1734357481893,1.14000341,3893.7,3893.2,0.8277]
[1734357484729,3.70813341,3893.9,3893.2,0.8277]
[1734357485418,1.14000341,3893.7,3893.2,0.8277]
[1734357485999,1.14000341,3893.4,3893.2,0.8277]
[1734357487601,3.70845341,3893.4,3892.5,0.8159]
[1734357487796,1.14000341,3893.2,3892.5,0.8159]
[1734357488749,2.56857,3893.3,3892.5,0.8159]
[1734357492721,1.14000341,3893.4,3892.5,1.08024122]
[1734357492907,1.14000341,3893.4,3892.6,0.8182]
[1734357494434,3.70848341,3893.4,3892.6,0.8182]
[1734357498625,1.14000341,3893.4,3892.6,0.8182]
[1734357498841,2.56851,3893.3,3892.6,0.8182]
[1734357502453,2.56851,3893.3,3892.6,1.8919002]
[1734357503160,2.56832,3893.6,3892.7,1.0737002]
[1734357503358,2.56832,3893.6,3892.8,0.7612]
[1734357504562,2.56807,3894.0,3893.0,0.7699]
[1734357504771,2.41741278,3894.3,3893.2,0.7826]
[1734357504772,1.06894185,3894.3,3893.2,0.7826]
[1734357505065,1.14000341,3894.4,3893.2,0.7826]
[1734357505066,1.14000341,3894.1,3893.3,0.7826]
[1734357505276,2.5682,3893.8,3893.3,0.7826]
[1734357505652,2.56806,3894.0,3893.3,0.7826]
[1734357509354,2.56823,3893.8,3893.3,0.7826]
[1734357509560,1.14000341,3893.5,3893.1,1.9010002]
[1734357509764,1.14000341,3893.5,3893.1,0.8273]
[1734357509765,2.56846,3893.4,3893.1,0.8273]
[1734357512125,1.14000341,3893.5,3892.9,1.0737002]
[1734357512126,2.56858,3893.2,3892.9,1.0737002]
[1734357512453,2.56871,3893.0,3892.8,0.8066]
[1734357513279,2.56875,3893.0,3892.8,0.8066]
[1734357513976,2.56859,3893.2,3892.8,0.8066]
[1734357514332,1.14000341,3893.6,3892.8,0.8066]
[1734357514830,1.14000341,3893.6,3892.8,1.8803002]
[1734357514831,2.56846,3893.4,3892.8,1.8803002]
[1734357515252,2.56846,3893.4,3892.8,0.8066]
[1734357515785,3.70833341,3893.6,3892.8,0.8066]
[1734357515937,4.72275855,3893.6,3892.8,0.8066]
[1734357517144,2.15442855,3893.6,3892.8,0.8066]
[1734357517346,2.5684,3893.5,3892.8,0.8066]
[1734357518280,1.14000341,3893.3,3892.8,0.8066]
[1734357518437,1.14000341,3893.3,3892.5,3.26667689]
[1734357518438,2.5688,3892.9,3892.5,1.0737002]
[1734357518785,3.70895341,3892.7,3892.2,1.0737002]
[1734357518995,3.70895341,3892.7,3892.1,1.8949002]
[1734357519159,3.70895341,3892.7,3892.2,1.0737002]
[1734357519478,3.70895341,3892.7,3892.1,1.8949002]
[1734357519779,3.70895341,3892.7,3892.2,1.0737002]
[1734357520084,3.70895341,3892.7,3892.1,1.8949002]
[1734357521862,1.14000341,3892.7,3892.1,1.8949002]
[1734357522062,2.56898,3892.6,3892.1,1.8949002]
[1734357522697,1.14000341,3892.7,3892.1,1.8949002]
[1734357524219,1.14000341,3892.7,3892.1,0.8212]
[1734357524582,3.70892341,3892.7,3892.1,0.8212]
[1734357524787,2.56897,3892.6,3892.1,0.8212]
[1734357532621,1.14000341,3892.7,3892.1,0.8212]
[1734357532829,1.14000341,3892.9,3892.1,0.8212]
[1734357533037,3.37045,3893.4,3892.2,1.14000341]
[1734357533205,2.56845,3893.4,3892.5,0.7762]
[1734357533938,2.56851,3893.3,3892.5,0.7762]
[1734357534708,2.56851,3893.3,3892.5,1.8499002]
[1734357535029,2.56851,3893.3,3892.6,0.34604505]
[1734357535449,3.70838341,3893.5,3892.7,0.8306]
[1734357536053,2.56826,3893.7,3892.7,1.9043002]
[1734357536355,1.14000341,3893.8,3892.7,1.9043002]
[1734357536356,1.14000341,3893.8,3892.7,0.8306]
[1734357536554,3.70832341,3893.6,3892.7,0.8306]
[1734357536849,3.70832341,3893.6,3892.8,0.27641353]
[1734357538645,1.14000341,3893.6,3892.8,0.27641353]
[1734357539453,2.56824,3893.8,3892.9,0.7802]
[1734357539659,1.14000341,3893.7,3892.9,0.7802]
[1734357539842,3.70826341,3893.7,3892.9,0.7802]
[1734357540156,1.14000341,3893.7,3893.0,0.26440937]
[1734357541061,1.14000341,3893.1,3892.9,0.7802]
[1734357541272,1.14000341,3893.1,3892.6,0.7802]
[1734357541411,3.70865341,3893.1,3892.6,0.7802]
[1734357542358,1.14000341,3893.1,3892.6,0.7802]
[1734357542738,2.56877,3893.0,3892.3,0.8166]
[1734357542937,2.56877,3893.0,3892.3,1.8903002]
[1734357545261,2.56885,3892.8,3892.3,0.8166]
[1734357545449,2.56885,3892.8,3892.0,1.8780002]
[1734357545450,1.14000341,3892.7,3892.0,1.8780002]
[1734357545778,3.70911341,3892.4,3892.0,0.8043]
[1734357545937,3.70911341,3892.4,3891.7,1.8780002]
[1734357545938,2.56917,3892.3,3891.7,1.8780002]
[1734357546606,1.14000341,3892.4,3891.7,2.22685525]
[1734357546756,0.7644,3892.8,3892.0,0.8043]
[1734357546961,2.56891,3892.7,3892.0,0.8043]
[1734357547595,0.7644,3892.8,3892.0,0.8043]
[1734357547898,3.33326,3892.8,3892.0,0.8043]
[1734357548463,2.56893,3892.7,3892.0,0.8043]
[1734357549095,0.7644,3892.8,3892.0,0.8043]
[1734357549096,2.56898,3892.6,3892.0,0.8043]
[1734357549401,0.7644,3892.8,3892.0,0.8043]
[1734357549402,0.19044034,3892.7,3892.0,0.8043]
[1734357549605,0.7508,3893.5,3892.2,0.804]
[1734357549787,1.89080341,3893.5,3892.4,0.804]
[1734357549964,1.89080341,3893.5,3892.4,2.22652525]
[1734357550163,1.89080341,3893.5,3892.4,1.8777002]
[1734357551290,2.56847,3893.4,3892.4,1.8777002]
[1734357551597,2.56853,3893.3,3892.4,1.8777002]
[1734357551801,2.56853,3893.3,3892.4,0.804]
[1734357551996,1.14000341,3893.2,3892.4,0.804]
[1734357552216,1.14000341,3893.2,3892.4,2.27790925]
[1734357552712,1.14000341,3893.2,3892.5,1.0737002]
[1734357552875,3.70839341,3893.5,3892.6,0.804]
[1734357553071,6.0777723,3894.2,3892.8,1.0737002]
[1734357553072,0.7508,3894.1,3892.8,1.0737002]
[1734357553374,3.70781341,3894.4,3893.3,0.804]
[1734357553605,2.56781,3894.4,3893.3,1.3177]
[1734357553804,2.56781,3894.4,3893.3,2.3914002]
[1734357554410,2.56781,3894.4,3893.4,0.8256]
[1734357554612,2.56781,3894.4,3893.5,0.8256]
[1734357555394,1.14000341,3894.4,3893.5,0.8256]
[1734357555792,1.14000341,3894.4,3893.5,1.33927]
[1734357557433,3.0,3894.9,3893.5,1.33927]
[1734357557434,1.84664185,3895.2,3893.5,2.45500063]
[1734357557636,1.84664185,3895.2,3893.9,0.51362]
[1734357557637,2.5674,3895.0,3893.9,0.51362]
[1734357557840,1.14000341,3894.5,3893.8,0.751]
[1734357558022,3.01597034,3894.9,3893.8,0.751]
[1734357558023,1.14000341,3894.9,3893.8,0.751]
[1734357558192,1.14000341,3894.9,3893.9,0.751]
[1734357558396,1.14000341,3894.9,3893.9,1.26462]
[1734357558694,1.58850775,3894.9,3893.9,1.26462]
[1734357560712,1.14000341,3894.9,3893.9,1.26462]
[1734357560895,2.56744,3895.0,3893.9,1.26462]
[1734357561297,1.14000341,3894.9,3893.9,1.26462]
[1734357561968,2.56744,3895.0,3893.9,0.751]
[1734357562189,1.14000341,3895.0,3894.0,1.3259]
[1734357562961,1.14000341,3895.0,3894.1,0.7704]
[1734357563291,1.14000341,3895.0,3894.1,1.28399]
[1734357563489,1.14000341,3895.0,3894.1,0.7704]
[1734357563691,0.7777,3895.2,3894.1,0.7704]
[1734357563692,1.14000341,3894.8,3894.1,0.7704]
[1734357563985,1.14000341,3894.4,3893.6,0.7704]
[1734357564134,1.14000341,3894.4,3893.7,0.128407]
[1734357564590,1.14000341,3894.7,3893.8,0.7704]
[1734357565410,2.56738,3895.1,3894.1,0.51359]
[1734357565625,2.56706,3895.5,3894.3,0.51356]
[1734357565826,1.96680341,3895.6,3894.4,0.91973368]
[1734357565827,0.8268,3895.6,3894.4,0.91973368]
[1734357565964,2.56695,3895.7,3894.6,0.7871]
[1734357566460,2.56702,3895.6,3894.6,0.7871]
[1734357567477,2.56702,3895.6,3894.6,1.30062]
[1734357567689,2.56702,3895.6,3894.7,0.14332537]
[1734357567892,1.14000341,3895.8,3894.7,0.14332537]
[1734357568106,2.56693,3895.7,3894.7,0.14332537]
[1734357568707,2.567,3895.6,3894.7,0.14332537]
[1734357568912,1.14000341,3895.8,3894.7,0.14332537]
[1734357570201,1.14000341,3895.8,3894.6,0.7871]
[1734357570202,2.56703,3895.6,3894.8,0.14439554]
[1734357571741,2.56703,3895.6,3894.9,0.7993]
[1734357572096,1.14000341,3895.5,3894.9,0.7993]
[1734357572329,2.5672,3895.3,3894.9,0.7993]
[1734357573436,0.8268,3895.9,3894.9,0.7993]
[1734357573437,2.56705,3895.6,3894.9,0.7993]
[1734357574452,2.56679,3896.0,3894.9,1.31278]
[1734357574737,2.56658,3896.3,3895.2,0.7503]
[1734357574958,1.14000341,3896.3,3895.2,0.7503]
[1734357575254,2.56707,3895.5,3895.2,0.7503]
[1734357575636,0.7691,3895.9,3895.2,0.7503]
[1734357575845,2.56656,3896.3,3895.3,0.7503]
[1734357575997,0.7691,3896.5,3895.5,0.7503]
[1734357576355,2.56635,3896.6,3895.5,0.7503]
[1734357576737,2.56635,3896.6,3895.6,0.7503]
[1734357576941,1.14000341,3896.8,3895.6,0.7503]
[1734357577205,2.5664,3896.5,3895.6,0.7503]
[1734357577546,1.14000341,3896.8,3895.6,0.7503]
[1734357577547,2.56647,3896.4,3895.6,0.7503]
[1734357579663,1.14000341,3896.8,3895.6,0.7503]
[1734357579846,1.14000341,3895.9,3894.4,0.13263368]
[1734357580043,2.56699,3895.6,3894.6,0.7503]
[1734357580245,2.56699,3895.6,3894.8,0.8204]
[1734357580449,1.14000341,3895.9,3894.8,0.8204]
[1734357580450,2.56707,3895.5,3894.8,0.8204]
[1734357580879,1.14000341,3895.4,3894.8,0.8204]
[1734357581203,2.56734,3895.1,3894.8,0.8204]
[1734357581558,1.14000341,3895.4,3894.8,0.8204]
[1734357581797,0.44761434,3895.3,3894.8,0.8204]
[1734357582114,3.01481434,3895.3,3894.8,0.8204]
[1734357583151,0.44761434,3895.3,3894.8,0.8204]
[1734357583356,2.56731,3895.2,3894.8,0.8204]
[1734357583564,2.56735,3895.1,3894.8,0.8204]
[1734357586598,2.46589014,3895.6,3894.0,0.7971]
[1734357586797,2.56746,3894.9,3894.0,0.7971]
[1734357587104,2.56739,3895.1,3894.0,0.7971]
[1734357587260,2.56739,3895.1,3894.2,0.8291]
[1734357587609,2.56752,3894.9,3894.2,0.8291]
[1734357588979,3.0,3895.5,3894.2,0.8291]
[1734357589216,12.3196,3900.1,3894.2,0.8291]
[1734357589217,2.56766,3894.6,3894.2,0.8291]
[1734357589404,2.56751,3894.9,3894.2,0.8291]
[1734357589916,2.56733,3895.1,3894.2,0.8291]
[1734357591765,2.56739,3895.0,3894.2,0.8291]
[1734357594969,2.55810774,3895.0,3894.2,0.8291]
[1734357596650,2.56765,3894.6,3894.2,0.8291]
[1734357596804,0.25581077,3895.0,3894.2,0.8291]
[1734357597010,2.56778,3894.5,3894.2,0.8291]
[1734357598957,2.56778,3894.5,3893.7,0.7887]
[1734357599285,0.7536,3894.7,3893.7,0.7887]
[1734357599453,2.5681,3894.0,3893.7,0.7887]
[1734357600121,0.32194901,3894.6,3893.7,0.7887]
[1734357600122,2.56789,3894.3,3893.7,0.7887]
[1734357600305,2.88959901,3894.6,3893.7,0.7887]
[1734357600665,2.56772,3894.5,3893.7,0.7887]
[1734357600957,2.56798,3894.2,3893.7,0.7887]
[1734357601263,2.56804,3894.1,3893.7,0.7887]
[1734357601545,2.56805,3894.0,3893.7,0.7887]
[1734357602162,0.35414392,3894.5,3893.7,0.7887]
[1734357602163,2.56792,3894.2,3893.7,0.7887]
[1734357602303,1.13888808,3894.3,3893.7,0.7887]
[1734357602304,2.56806,3894.0,3893.7,0.7887]
[1734357603730,2.92190392,3894.5,3893.7,0.7887]
[1734357603731,0.7536,3894.7,3893.7,0.7887]
[1734357603954,0.51551363,3895.3,3893.7,0.7887]
[1734357603955,0.7585,3895.1,3893.9,0.7657]
[1734357604109,1.60341278,3895.7,3893.9,0.7657]
[1734357604110,2.56728,3895.2,3894.1,1.27929]
[1734357604457,2.56728,3895.2,3894.2,0.7657]
[1734357605107,0.7585,3895.7,3894.3,0.8009]
[1734357605108,1.13888808,3895.4,3894.3,0.8009]
[1734357605306,2.56738,3895.1,3894.3,0.8009]
[1734357606005,2.56738,3895.1,3894.3,1.06976071]
[1734357606936,7.87654,3896.3,3894.4,2.49189263]
[1734357606937,4.88554185,3896.1,3894.4,2.49189263]
[1734357607150,1.88554185,3896.4,3895.1,0.7749]
[1734357607451,0.8166,3896.7,3895.3,1.28833]
[1734357607655,2.56629,3896.7,3895.5,0.8085]
[1734357607835,0.768,3897.0,3895.6,0.8085]
[1734357608033,2.56643,3896.5,3895.6,0.8085]
[1734357609262,2.56673,3896.0,3895.0,0.7593]
[1734357609404,2.5668,3895.9,3895.0,0.7593]
[1734357609610,3.0,3896.3,3894.6,0.8041]
[1734357609611,0.7657,3895.3,3894.6,0.8041]
[1734357610068,2.56747,3894.9,3894.6,0.8041]
[1734357613618,2.56754,3894.8,3894.6,0.8041]
[1734357617672,2.56738,3895.1,3894.6,0.8041]
[1734357617871,3.33293,3895.3,3894.6,0.8041]
[1734357617872,2.56741,3895.0,3894.6,0.8041]
[1734357620283,2.56728,3895.2,3894.6,0.8041]
[1734357620597,2.56736,3895.1,3894.6,0.8041]
[1734357621383,2.56716,3895.4,3894.6,0.8041]
[1734357621827,0.7918,3896.0,3894.7,0.825]
[1734357621828,2.56697,3895.7,3894.7,0.825]
[1734357622139,2.567,3895.6,3894.7,0.825]
[1734357622439,0.7918,3896.0,3894.9,0.825]
[1734357622581,1.06894185,3896.6,3895.0,0.825]
[1734357622786,2.5664,3896.5,3895.5,0.51341]
[1734357622984,2.56634,3896.6,3895.6,1.26909]
[1734357623179,2.56634,3896.6,3895.7,0.7557]
[1734357623782,2.56641,3896.5,3895.7,0.7557]
[1734357624022,2.46621614,3896.9,3895.7,0.7557]
[1734357624239,2.56681,3895.9,3895.7,0.7557]
[1734357624724,2.56681,3895.9,3895.0,0.7557]
[1734357625125,2.56688,3895.8,3895.0,0.7557]
[1734357625630,2.56674,3896.0,3895.0,1.8294002]
[1734357625783,2.56674,3896.0,3895.2,0.7695]
[1734357626835,2.56636,3896.6,3895.4,1.5871102]
[1734357627126,0.7608,3897.0,3895.6,0.753]
[1734357627426,2.56641,3896.5,3895.6,0.753]
[1734357627636,2.56624,3896.8,3895.7,0.753]
[1734357627798,2.56636,3896.6,3895.7,0.753]
[1734357628202,2.5664,3896.5,3895.7,0.753]
[1734357629111,2.56655,3896.3,3895.7,0.753]
[1734357629324,5.46621614,3896.9,3895.7,0.753]
[1734357629491,2.56633,3896.7,3895.7,0.753]
[1734357629690,0.32270161,3896.8,3895.7,0.753]
[1734357629915,2.56636,3896.6,3895.7,0.753]
[1734357631087,0.32270161,3896.8,3895.7,0.753]
[1734357631309,2.56653,3896.4,3895.7,0.753]
[1734357632808,2.56634,3896.6,3895.7,0.753]
[1734357633229,0.7608,3897.0,3895.9,0.51334]
[1734357633230,2.56607,3897.0,3895.9,0.51334]
[1734357633432,2.56607,3897.0,3896.0,0.779]
[1734357634315,2.56607,3897.0,3895.6,0.25967478]
[1734357634316,2.56569,3897.6,3896.4,0.51328]
[1734357634642,2.56575,3897.5,3896.6,0.779]
[1734357635197,0.592552,3897.6,3896.6,0.779]
[1734357635397,2.56582,3897.4,3896.6,0.779]
[1734357636239,0.592552,3897.6,3896.6,0.779]
[1734357636446,2.56608,3897.0,3896.6,0.779]
[1734357636743,2.56574,3897.5,3895.7,0.8105]
[1734357636744,0.765,3896.6,3895.7,0.8105]
[1734357636964,2.56656,3896.3,3895.7,0.8105]
[1734357637098,2.5666,3896.3,3895.7,0.8105]
[1734357637301,2.56664,3896.2,3895.7,0.8105]
[1734357637536,0.7723,3897.0,3895.7,0.8105]
[1734357637722,2.56644,3896.5,3895.7,0.8105]
[1734357637924,3.0,3896.3,3895.7,0.8105]
[1734357638334,3.0,3896.7,3895.7,0.8105]
[1734357638538,2.56654,3896.3,3895.7,0.8105]
[1734357638821,2.56653,3896.4,3895.7,0.8105]
[1734357639023,0.61466526,3896.6,3895.7,0.8105]
[1734357639339,3.0,3896.5,3895.7,0.8105]
[1734357640147,2.56669,3896.1,3895.7,0.8105]
[1734357641960,0.61466526,3896.6,3895.7,0.8105]
[1734357642102,2.56679,3896.0,3895.7,0.8105]
[1734357642954,2.5668,3895.9,3895.7,0.8105]
[1734357643252,2.56686,3895.8,3895.7,0.8105]
[1734357643439,0.256686,3895.8,3894.7,0.8149]
[1734357643634,3.0,3896.0,3894.7,0.8149]
[1734357643635,2.56706,3895.5,3894.7,0.8149]
[1734357644151,5.56677,3896.0,3894.7,0.8149]
[1734357644152,3.0,3896.0,3894.7,0.8149]
[1734357644324,2.56731,3895.2,3894.7,0.8149]
[1734357644651,2.56712,3895.5,3894.7,0.8149]
[1734357644854,0.8207,3895.7,3894.7,0.8149]
[1734357645008,2.56719,3895.4,3894.7,0.8149]
[1734357647624,2.56685,3895.9,3894.7,0.8149]
[1734357647931,2.56701,3895.6,3894.7,0.8149]
[1734357648306,2.56709,3895.5,3894.7,0.8149]
[1734357649346,2.56714,3895.4,3894.7,0.8149]
[1734357649549,2.567,3895.6,3894.7,0.8149]
[1734357649748,2.56708,3895.5,3894.7,0.8149]
[1734357650620,3.36987,3896.0,3894.7,0.8149]
[1734357650850,2.56691,3895.8,3894.7,0.8149]
[1734357651067,3.460588,3895.8,3894.7,0.8149]
[1734357651408,0.61466526,3896.6,3895.3,0.51343]
[1734357651409,0.8188,3896.4,3895.3,0.51343]
[1734357651614,0.8188,3897.0,3895.7,0.8246]
[1734357651815,0.8188,3897.0,3896.0,0.7991]
[1734357652311,3.38488,3897.0,3896.0,0.7991]
[1734357652684,5.03200614,3897.5,3896.0,0.7991]
[1734357652685,0.8104,3897.4,3896.0,0.7991]
[1734357653017,2.56608,3897.0,3896.0,0.7991]
[1734357654843,3.0,3897.4,3896.3,0.8108]
[1734357655122,2.56589,3897.3,3896.3,0.8108]
[1734357656492,2.56593,3897.3,3896.3,0.8108]
[1734357657091,3.0,3897.5,3896.3,0.943214]
[1734357657299,3.0,3897.5,3896.5,0.8315]
[1734357657500,0.7848,3897.7,3896.5,0.8315]
[1734357657817,2.46621614,3898.3,3896.6,0.7887]
[1734357658022,2.81197161,3898.2,3896.8,0.51323]
[1734357658230,0.24662161,3898.2,3896.9,0.7887]
[1734357658535,2.56543,3898.0,3896.9,0.7887]
[1734357659028,2.56555,3897.8,3896.9,0.7887]
[1734357661185,0.60903678,3898.0,3896.9,0.7887]
[1734357661409,2.56543,3898.0,3896.9,0.7887]
[1734357662286,2.56549,3897.9,3896.9,0.7887]
[1734357663214,2.56536,3898.1,3896.9,0.7887]
[1734357663381,2.56536,3898.1,3897.0,0.7802]
[1734357663588,2.46621614,3898.3,3897.0,0.909541]
[1734357663797,2.56541,3898.1,3897.0,0.909541]
[1734357663999,2.46621614,3898.3,3897.0,0.909541]
[1734357664204,2.56542,3898.0,3897.0,0.909541]
[1734357665000,2.46621614,3898.3,3897.0,0.909541]
[1734357665001,2.56554,3897.9,3897.0,0.909541]
[1734357665193,2.822094,3897.9,3897.0,0.7802]
[1734357665390,2.56562,3897.7,3897.0,0.7802]
[1734357665989,2.822054,3897.9,3897.0,0.7802]
[1734357666219,0.256554,3897.9,3897.0,0.7802]
[1734357666531,2.56557,3897.8,3897.0,0.7802]
[1734357666888,2.56561,3897.7,3897.0,0.7802]
[1734357667232,2.46621614,3897.5,3896.4,0.7987]
[1734357667421,2.56608,3897.0,3896.4,0.7987]